[Event "Titled Tuesday Blitz November 08 Late 2022"]
[White "Barash, Anton"]
[Black "Urbina Perez, Juan Antonio"]
[WhiteFideId "30935229"]
[BlackFideId "2217368"]
[WhiteElo "2274"]
[BlackElo "2197"]
[Result "1-0"]
[Round "02"]
[TimeControl "180+1"]
[Date "2022.11.09"]
[WhiteClock "0:00:09"]
[BlackClock "0:00:39"]

1. e4 {[%clk 0:02:52]}  c5 {[%clk 0:02:59]} 2. Nf3 {[%clk 0:02:52]}  d6 {[%clk 0:02:59]} 3. d4 {[%clk 0:02:53]}  cxd4 {[%clk 0:03:00]} 4. Nxd4 {[%clk 0:02:54]}  Nf6 {[%clk 0:03:00]} 5. Nc3 {[%clk 0:02:55]}  Nc6 {[%clk 0:03:01]} 6. Bc4 {[%clk 0:02:53]}  Qb6 {[%clk 0:02:59]} 7. Nb3 {[%clk 0:02:38]}  e6 {[%clk 0:02:59]} 8. O-O {[%clk 0:02:37]}  a6 {[%clk 0:02:58]} 9. a4 {[%clk 0:02:28]}  Be7 {[%clk 0:02:54]} 10. Kh1 {[%clk 0:02:23]}  O-O {[%clk 0:02:49]} 11. Be3 {[%clk 0:02:23]}  Qc7 {[%clk 0:02:49]} 12. f4 {[%clk 0:02:22]}  b6 {[%clk 0:02:44]} 13. Qf3 {[%clk 0:02:17]}  Bb7 {[%clk 0:02:43]} 14. Nd2 {[%clk 0:02:03]}  Rac8 {[%clk 0:02:32]} 15. Qg3 {[%clk 0:01:47]}  Na5 {[%clk 0:02:19]} 16. Ba2 {[%clk 0:01:43]}  d5 {[%clk 0:02:15]} 17. e5 {[%clk 0:01:33]}  Ne4 {[%clk 0:02:14]} 18. Ncxe4 {[%clk 0:01:28]}  dxe4 {[%clk 0:02:15]} 19. c3 {[%clk 0:01:28]}  Bc5 {[%clk 0:02:05]} 20. Bxc5 {[%clk 0:01:18]}  bxc5 {[%clk 0:02:06]} 21. f5 {[%clk 0:01:15]}  exf5 {[%clk 0:02:02]} 22. Rxf5 {[%clk 0:01:13]}  Qd7 {[%clk 0:01:56]} 23. Raf1 {[%clk 0:01:03]}  Qxd2 {[%clk 0:01:35]} 24. Rxf7 {[%clk 0:00:58]}  Rxf7 {[%clk 0:01:20]} 25. Rxf7 {[%clk 0:00:57]}  Qh6 {[%clk 0:01:07]} 26. Rf6+ {[%clk 0:00:11]}  Kh8 {[%clk 0:01:08]} 27. Rxh6 {[%clk 0:00:11]}  gxh6 {[%clk 0:01:08]} 28. Be6 {[%clk 0:00:10]}  Rf8 {[%clk 0:01:06]} 29. h3 {[%clk 0:00:09]}  Nc6 {[%clk 0:01:03]} 30. Qe3 {[%clk 0:00:08]}  Nxe5 {[%clk 0:00:59]} 31. Qxh6 {[%clk 0:00:08]}  Ng6 {[%clk 0:00:54]} 32. Kh2 {[%clk 0:00:06]}  Bc8 {[%clk 0:00:52]} 33. Bd5 {[%clk 0:00:03]}  Re8 {[%clk 0:00:48]} 34. Qe3 {[%clk 0:00:03]}  Bf5 {[%clk 0:00:45]} 35. Bc6 {[%clk 0:00:03]}  Re5 {[%clk 0:00:43]} 36. g4 {[%clk 0:00:03]}  Be6 {[%clk 0:00:42]} 37. Bb7 {[%clk 0:00:01]}  Kg7 {[%clk 0:00:39]} 38. Bxa6 {[%clk 0:00:01]}  Bd5 {[%clk 0:00:39]} 39. Bc8 {[%clk 0:00:01]}  Re8 {[%clk 0:00:38]} 40. Bf5 {[%clk 0:00:01]}  Bc6 {[%clk 0:00:37]} 41. Kg3 {[%clk 0:00:02]}  Ne7 {[%clk 0:00:34]} 42. h4 {[%clk 0:00:02]}  Nxf5+ {[%clk 0:00:34]} 43. gxf5 {[%clk 0:00:03]}  h6 {[%clk 0:00:35]} 44. Kf4 {[%clk 0:00:04]}  Kf6 {[%clk 0:00:36]} 45. Qg3 {[%clk 0:00:04]}  Rf8 {[%clk 0:00:32]} 46. Qg6+ {[%clk 0:00:04]}  Ke7 {[%clk 0:00:33]} 47. Qe6+ {[%clk 0:00:05]}  Kd8 {[%clk 0:00:32]} 48. Qxc6 {[%clk 0:00:05]}  Re8 {[%clk 0:00:33]} 49. Qxe8+ {[%clk 0:00:04]}  Kxe8 {[%clk 0:00:32]} 50. Kxe4 {[%clk 0:00:05]}  Kd7 {[%clk 0:00:33]} 51. Ke5 {[%clk 0:00:05]}  Ke7 {[%clk 0:00:34]} 52. f6+ {[%clk 0:00:06]}  Kf7 {[%clk 0:00:35]} 53. a5 {[%clk 0:00:06]}  Kf8 {[%clk 0:00:35]} 54. a6 {[%clk 0:00:07]}  h5 {[%clk 0:00:36]} 55. a7 {[%clk 0:00:08]}  Kf7 {[%clk 0:00:37]} 56. a8=Q {[%clk 0:00:08]}  c4 {[%clk 0:00:38]} 57. Qb7+ {[%clk 0:00:09]}  Kg6 {[%clk 0:00:39]} 58. Qg7# {[%clk 0:00:09]} 1-0


[Site "https://www.chess.com"]

[Event "Titled Tuesday Blitz November 08 Late 2022"]
[White "Beerdsen, Thomas"]
[Black "Souleidis, Georgios"]
[WhiteFideId "1030108"]
[BlackFideId "4206827"]
[WhiteElo "2806"]
[BlackElo "2554"]
[Result "1-0"]
[Round "02"]
[TimeControl "180+1"]
[Date "2022.11.09"]
[WhiteClock "0:02:56"]
[BlackClock "0:02:30"]

1. g4 {[%clk 0:03:00]}  d5 {[%clk 0:02:57]} 2. Bg2 {[%clk 0:03:01]}  c6 {[%clk 0:02:57]} 3. c4 {[%clk 0:03:01]}  e6 {[%clk 0:02:54]} 4. d4 {[%clk 0:02:58]}  Bd6 {[%clk 0:02:53]} 5. Nc3 {[%clk 0:02:57]}  h6 {[%clk 0:02:52]} 6. h4 {[%clk 0:02:55]}  Nf6 {[%clk 0:02:45]} 7. g5 {[%clk 0:02:55]}  hxg5 {[%clk 0:02:46]} 8. hxg5 {[%clk 0:02:56]}  Rxh1 {[%clk 0:02:46]} 9. Bxh1 {[%clk 0:02:57]}  Nh5 {[%clk 0:02:36]} 10. e4 {[%clk 0:02:57]}  dxe4 {[%clk 0:02:30]} 11. Qxh5 {[%clk 0:02:56]} 1-0


[Site "https://www.chess.com"]

[Event "Titled Tuesday Blitz November 08 Late 2022"]
[White "Bernat, David"]
[Black "Gubajdullin, Alexei"]
[WhiteFideId "2099225"]
[BlackFideId "4141202"]
[WhiteElo "2338"]
[BlackElo "2230"]
[Result "0-1"]
[Round "02"]
[TimeControl "180+1"]
[Date "2022.11.09"]
[WhiteClock "0:00:18"]
[BlackClock "0:01:16"]

1. c4 {[%clk 0:02:58]}  Nf6 {[%clk 0:02:58]} 2. Nc3 {[%clk 0:02:59]}  g6 {[%clk 0:02:59]} 3. g3 {[%clk 0:02:59]}  Bg7 {[%clk 0:03:00]} 4. Bg2 {[%clk 0:03:00]}  O-O {[%clk 0:03:01]} 5. e4 {[%clk 0:03:01]}  d6 {[%clk 0:03:01]} 6. Nge2 {[%clk 0:03:01]}  Nc6 {[%clk 0:02:59]} 7. O-O {[%clk 0:03:02]}  Be6 {[%clk 0:02:56]} 8. d3 {[%clk 0:03:01]}  Qd7 {[%clk 0:02:56]} 9. Nf4 {[%clk 0:03:01]}  Bg4 {[%clk 0:02:55]} 10. f3 {[%clk 0:03:01]}  Be6 {[%clk 0:02:55]} 11. Nxe6 {[%clk 0:03:01]}  fxe6 {[%clk 0:02:55]} 12. d4 {[%clk 0:02:57]}  e5 {[%clk 0:02:53]} 13. d5 {[%clk 0:02:57]}  Nd4 {[%clk 0:02:53]} 14. Ne2 {[%clk 0:02:54]}  c5 {[%clk 0:02:44]} 15. dxc6 {[%clk 0:02:44]}  Nxe2+ {[%clk 0:02:40]} 16. Qxe2 {[%clk 0:02:44]}  bxc6 {[%clk 0:02:41]} 17. Rd1 {[%clk 0:02:23]}  c5 {[%clk 0:02:39]} 18. Be3 {[%clk 0:02:19]}  Qe6 {[%clk 0:02:36]} 19. b3 {[%clk 0:02:17]}  Nd7 {[%clk 0:02:34]} 20. Qd3 {[%clk 0:02:05]}  Kh8 {[%clk 0:02:24]} 21. Qd5 {[%clk 0:02:02]}  Qxd5 {[%clk 0:02:21]} 22. Rxd5 {[%clk 0:02:01]}  Nb8 {[%clk 0:02:15]} 23. Rad1 {[%clk 0:01:57]}  Nc6 {[%clk 0:02:14]} 24. R5d2 {[%clk 0:01:55]}  a5 {[%clk 0:02:13]} 25. Bg5 {[%clk 0:01:49]}  h5 {[%clk 0:02:08]} 26. Bh3 {[%clk 0:01:37]}  Ra7 {[%clk 0:02:04]} 27. Kg2 {[%clk 0:01:27]}  Kh7 {[%clk 0:02:00]} 28. Be6 {[%clk 0:01:16]}  Bh6 {[%clk 0:01:58]} 29. h4 {[%clk 0:01:07]}  Bxg5 {[%clk 0:01:57]} 30. hxg5 {[%clk 0:01:08]}  Nd4 {[%clk 0:01:58]} 31. Rxd4 {[%clk 0:01:06]}  cxd4 {[%clk 0:01:56]} 32. g4 {[%clk 0:00:54]}  hxg4 {[%clk 0:01:55]} 33. Bxg4 {[%clk 0:00:54]}  Rb8 {[%clk 0:01:49]} 34. Be6 {[%clk 0:00:50]}  a4 {[%clk 0:01:48]} 35. Rb1 {[%clk 0:00:50]}  axb3 {[%clk 0:01:47]} 36. axb3 {[%clk 0:00:51]}  Rb4 {[%clk 0:01:47]} 37. f4 {[%clk 0:00:49]}  exf4 {[%clk 0:01:46]} 38. Kf3 {[%clk 0:00:49]}  Ra3 {[%clk 0:01:45]} 39. Kxf4 {[%clk 0:00:49]}  Rbxb3 {[%clk 0:01:43]} 40. Rh1+ {[%clk 0:00:47]}  Kg7 {[%clk 0:01:42]} 41. Bg4 {[%clk 0:00:47]}  Rb2 {[%clk 0:01:40]} 42. e5 {[%clk 0:00:43]}  d3 {[%clk 0:01:34]} 43. exd6 {[%clk 0:00:41]}  exd6 {[%clk 0:01:34]} 44. Rd1 {[%clk 0:00:40]}  d2 {[%clk 0:01:33]} 45. Be2 {[%clk 0:00:31]}  d5 {[%clk 0:01:20]} 46. cxd5 {[%clk 0:00:25]}  Rb4+ {[%clk 0:01:18]} 47. Ke5 {[%clk 0:00:18]}  Re3+ {[%clk 0:01:17]} 48. Kd6 {[%clk 0:00:18]}  Rxe2 {[%clk 0:01:16]} 0-1


[Site "https://www.chess.com"]

[Event "Titled Tuesday Blitz November 08 Late 2022"]
[White "Brodowski, Piotr"]
[Black "Xiong, Jeffery"]
[WhiteFideId "1124480"]
[BlackFideId "2047640"]
[WhiteElo "2351"]
[BlackElo "2725"]
[Result "0-1"]
[Round "02"]
[TimeControl "180+1"]
[Date "2022.11.08"]
[WhiteClock "0:00:03"]
[BlackClock "0:00:22"]

1. c4 {[%clk 0:03:00]}  e6 {[%clk 0:02:55]} 2. Nf3 {[%clk 0:02:59]}  d5 {[%clk 0:02:46]} 3. e3 {[%clk 0:02:56]}  Nf6 {[%clk 0:02:37]} 4. b3 {[%clk 0:02:53]}  b6 {[%clk 0:02:26]} 5. Bb2 {[%clk 0:02:51]}  Bb7 {[%clk 0:02:27]} 6. Be2 {[%clk 0:02:49]}  Bd6 {[%clk 0:02:09]} 7. Nc3 {[%clk 0:02:41]}  a6 {[%clk 0:02:07]} 8. Qc2 {[%clk 0:02:36]}  Nbd7 {[%clk 0:02:05]} 9. g4 {[%clk 0:02:31]}  dxc4 {[%clk 0:02:04]} 10. g5 {[%clk 0:02:11]}  cxb3 {[%clk 0:02:01]} 11. axb3 {[%clk 0:02:11]}  Nh5 {[%clk 0:02:00]} 12. Ne4 {[%clk 0:01:59]}  e5 {[%clk 0:01:22]} 13. Rg1 {[%clk 0:01:27]}  g6 {[%clk 0:01:12]} 14. d4 {[%clk 0:01:13]}  Bb4+ {[%clk 0:01:05]} 15. Kf1 {[%clk 0:01:12]}  exd4 {[%clk 0:00:46]} 16. Nxd4 {[%clk 0:01:03]}  Nc5 {[%clk 0:00:36]} 17. Nxc5 {[%clk 0:00:48]}  Bxc5 {[%clk 0:00:37]} 18. Bxh5 {[%clk 0:00:45]}  gxh5 {[%clk 0:00:37]} 19. Nf5 {[%clk 0:00:43]}  Rg8 {[%clk 0:00:36]} 20. Rd1 {[%clk 0:00:36]}  Qc8 {[%clk 0:00:37]} 21. h4 {[%clk 0:00:12]}  a5 {[%clk 0:00:32]} 22. Rg3 {[%clk 0:00:12]}  Qe6 {[%clk 0:00:21]} 23. Ng7+ {[%clk 0:00:02]}  Rxg7 {[%clk 0:00:22]} 24. Bxg7 {[%clk 0:00:03]}  Bd6 {[%clk 0:00:22]} 0-1


[Site "https://www.chess.com"]

[Event "Titled Tuesday Blitz November 08 Late 2022"]
[White "Curtis, John"]
[Black "Makaraci, Tunahan"]
[WhiteFideId "3200256"]
[BlackFideId "6356559"]
[WhiteElo "2203"]
[BlackElo "2161"]
[Result "0-1"]
[Round "02"]
[TimeControl "180+1"]
[Date "2022.11.09"]
[WhiteClock "0:00:06"]
[BlackClock "0:00:52"]

1. e4 {[%clk 0:03:00]}  Nf6 {[%clk 0:03:00]} 2. Nc3 {[%clk 0:02:59]}  e5 {[%clk 0:03:00]} 3. f4 {[%clk 0:02:57]}  d5 {[%clk 0:02:58]} 4. d3 {[%clk 0:02:46]}  Nc6 {[%clk 0:02:46]} 5. fxe5 {[%clk 0:02:43]}  Nxe5 {[%clk 0:02:45]} 6. d4 {[%clk 0:02:38]}  Ng6 {[%clk 0:02:45]} 7. e5 {[%clk 0:02:38]}  Ne4 {[%clk 0:02:45]} 8. Nxe4 {[%clk 0:02:26]}  dxe4 {[%clk 0:02:45]} 9. Bc4 {[%clk 0:02:12]}  Be7 {[%clk 0:02:36]} 10. Ne2 {[%clk 0:02:11]}  O-O {[%clk 0:02:36]} 11. O-O {[%clk 0:02:10]}  c5 {[%clk 0:02:35]} 12. c3 {[%clk 0:02:09]}  cxd4 {[%clk 0:02:35]} 13. cxd4 {[%clk 0:02:09]}  Be6 {[%clk 0:02:35]} 14. Bxe6 {[%clk 0:02:00]}  fxe6 {[%clk 0:02:35]} 15. Rxf8+ {[%clk 0:01:58]}  Bxf8 {[%clk 0:02:34]} 16. Nc3 {[%clk 0:01:57]}  Bb4 {[%clk 0:02:18]} 17. Nxe4 {[%clk 0:01:43]}  Qd5 {[%clk 0:02:18]} 18. Nc3 {[%clk 0:01:30]}  Bxc3 {[%clk 0:02:17]} 19. bxc3 {[%clk 0:01:31]}  Nxe5 {[%clk 0:02:16]} 20. Qe2 {[%clk 0:01:10]}  Nc4 {[%clk 0:02:11]} 21. Bf4 {[%clk 0:01:10]}  Rf8 {[%clk 0:02:10]} 22. Bg3 {[%clk 0:01:07]}  b5 {[%clk 0:02:08]} 23. Re1 {[%clk 0:01:06]}  Rf6 {[%clk 0:02:08]} 24. Be5 {[%clk 0:00:54]}  Rg6 {[%clk 0:02:06]} 25. Bg3 {[%clk 0:00:52]}  h5 {[%clk 0:02:03]} 26. Rf1 {[%clk 0:00:50]}  b4 {[%clk 0:01:38]} 27. cxb4 {[%clk 0:00:47]}  Qxd4+ {[%clk 0:01:38]} 28. Bf2 {[%clk 0:00:47]}  Qd5 {[%clk 0:01:36]} 29. Bxa7 {[%clk 0:00:44]}  Nd2 {[%clk 0:01:30]} 30. Rc1 {[%clk 0:00:26]}  Ne4 {[%clk 0:01:10]} 31. Bc5 {[%clk 0:00:22]}  h4 {[%clk 0:00:57]} 32. Rd1 {[%clk 0:00:18]}  Nc3 {[%clk 0:00:54]} 33. Rxd5 {[%clk 0:00:12]}  Nxe2+ {[%clk 0:00:54]} 34. Kf2 {[%clk 0:00:13]}  exd5 {[%clk 0:00:54]} 35. Kxe2 {[%clk 0:00:12]}  Rxg2+ {[%clk 0:00:55]} 36. Kd3 {[%clk 0:00:12]}  Rxa2 {[%clk 0:00:54]} 37. b5 {[%clk 0:00:11]}  Rxh2 {[%clk 0:00:53]} 38. Bd6 {[%clk 0:00:11]}  Rb2 {[%clk 0:00:53]} 39. b6 {[%clk 0:00:11]}  Rxb6 {[%clk 0:00:53]} 40. Be5 {[%clk 0:00:11]}  Re6 {[%clk 0:00:52]} 41. Kd4 {[%clk 0:00:12]}  Rxe5 {[%clk 0:00:52]} 42. Kxe5 {[%clk 0:00:12]}  h3 {[%clk 0:00:53]} 43. Kxd5 {[%clk 0:00:13]}  h2 {[%clk 0:00:54]} 44. Ke5 {[%clk 0:00:14]}  h1=Q {[%clk 0:00:54]} 45. Kf5 {[%clk 0:00:15]}  Qd5+ {[%clk 0:00:53]} 46. Kf4 {[%clk 0:00:06]}  Kf7 {[%clk 0:00:52]} 0-1


[Site "https://www.chess.com"]

[Event "Titled Tuesday Blitz November 08 Late 2022"]
[White "Dahlgren, James Allen"]
[Black "Ventura Bolet, Maxim"]
[WhiteFideId "22256873"]
[BlackFideId "22238824"]
[WhiteElo "2198"]
[BlackElo "2186"]
[Result "0-1"]
[Round "02"]
[TimeControl "180+1"]
[Date "2022.11.09"]
[WhiteClock "0:00:10"]
[BlackClock "0:00:48"]

1. e4 {[%clk 0:02:59]}  c5 {[%clk 0:02:58]} 2. b3 {[%clk 0:02:56]}  d6 {[%clk 0:02:50]} 3. Bb2 {[%clk 0:02:55]}  e5 {[%clk 0:02:47]} 4. Bc4 {[%clk 0:02:44]}  Nc6 {[%clk 0:02:44]} 5. Ne2 {[%clk 0:02:39]}  g6 {[%clk 0:02:37]} 6. f4 {[%clk 0:02:37]}  Bg7 {[%clk 0:02:35]} 7. O-O {[%clk 0:02:33]}  Nf6 {[%clk 0:02:29]} 8. d3 {[%clk 0:02:25]}  O-O {[%clk 0:02:29]} 9. Nbc3 {[%clk 0:02:16]}  Bg4 {[%clk 0:02:26]} 10. h3 {[%clk 0:02:13]}  Bxe2 {[%clk 0:02:25]} 11. Nxe2 {[%clk 0:02:08]}  Nd4 {[%clk 0:02:23]} 12. f5 {[%clk 0:02:00]}  b5 {[%clk 0:02:12]} 13. Bxd4 {[%clk 0:01:42]}  bxc4 {[%clk 0:02:12]} 14. Be3 {[%clk 0:01:40]}  cxd3 {[%clk 0:02:08]} 15. Qxd3 {[%clk 0:01:38]}  d5 {[%clk 0:01:50]} 16. Rad1 {[%clk 0:01:28]}  dxe4 {[%clk 0:01:40]} 17. Qxd8 {[%clk 0:01:25]}  Rfxd8 {[%clk 0:01:41]} 18. Bxc5 {[%clk 0:01:24]}  Rxd1 {[%clk 0:01:28]} 19. Rxd1 {[%clk 0:01:24]}  gxf5 {[%clk 0:01:29]} 20. Ng3 {[%clk 0:01:11]}  f4 {[%clk 0:01:23]} 21. Nf5 {[%clk 0:01:10]}  e3 {[%clk 0:01:13]} 22. Kf1 {[%clk 0:00:54]}  Ne4 {[%clk 0:01:12]} 23. Bd6 {[%clk 0:00:33]}  e2+ {[%clk 0:01:07]} 24. Kxe2 {[%clk 0:00:31]}  Nc3+ {[%clk 0:01:08]} 25. Ke1 {[%clk 0:00:29]}  Nxd1 {[%clk 0:01:09]} 26. Kxd1 {[%clk 0:00:29]}  Rd8 {[%clk 0:01:03]} 27. Ke2 {[%clk 0:00:28]}  Bf8 {[%clk 0:00:52]} 28. Bc7 {[%clk 0:00:20]}  Rc8 {[%clk 0:00:49]} 29. Bxe5 {[%clk 0:00:10]}  Re8 {[%clk 0:00:48]} 0-1


[Site "https://www.chess.com"]

[Event "Titled Tuesday Blitz November 08 Late 2022"]
[White "Darini, Pouria"]
[Black "Burke, Paul"]
[WhiteFideId "12502200"]
[BlackFideId "2605767"]
[WhiteElo "2483"]
[BlackElo "1812"]
[Result "1-0"]
[Round "02"]
[TimeControl "180+1"]
[Date "2022.11.09"]
[WhiteClock "0:01:54"]
[BlackClock "0:00:27"]

1. e4 {[%clk 0:03:00]}  e5 {[%clk 0:02:59]} 2. Nf3 {[%clk 0:03:00]}  Nc6 {[%clk 0:02:58]} 3. Bb5 {[%clk 0:03:01]}  f5 {[%clk 0:02:58]} 4. d3 {[%clk 0:03:00]}  Nf6 {[%clk 0:02:57]} 5. exf5 {[%clk 0:02:50]}  Be7 {[%clk 0:02:55]} 6. O-O {[%clk 0:02:46]}  O-O {[%clk 0:02:54]} 7. Bxc6 {[%clk 0:02:38]}  dxc6 {[%clk 0:02:54]} 8. Nxe5 {[%clk 0:02:38]}  Bxf5 {[%clk 0:02:54]} 9. Nc3 {[%clk 0:02:38]}  Bd6 {[%clk 0:02:53]} 10. Bf4 {[%clk 0:02:32]}  Qe8 {[%clk 0:02:09]} 11. Re1 {[%clk 0:02:30]}  Bxe5 {[%clk 0:02:08]} 12. Bxe5 {[%clk 0:02:27]}  Qg6 {[%clk 0:02:07]} 13. Bxc7 {[%clk 0:02:24]}  Bg4 {[%clk 0:01:37]} 14. Qd2 {[%clk 0:02:23]}  Bh3 {[%clk 0:01:25]} 15. Bg3 {[%clk 0:02:23]}  Bd7 {[%clk 0:01:18]} 16. Re5 {[%clk 0:02:23]}  h6 {[%clk 0:01:16]} 17. Rae1 {[%clk 0:02:22]}  Rfe8 {[%clk 0:01:16]} 18. Rxe8+ {[%clk 0:02:17]}  Rxe8 {[%clk 0:01:15]} 19. Rxe8+ {[%clk 0:02:17]}  Qxe8 {[%clk 0:01:15]} 20. Qe3 {[%clk 0:02:16]}  Qf7 {[%clk 0:01:13]} 21. f3 {[%clk 0:02:15]}  Be6 {[%clk 0:01:12]} 22. Qxa7 {[%clk 0:02:13]}  Nh5 {[%clk 0:01:06]} 23. a4 {[%clk 0:02:04]}  Qg6 {[%clk 0:01:00]} 24. Kf2 {[%clk 0:01:55]}  Nxg3 {[%clk 0:00:55]} 25. hxg3 {[%clk 0:01:55]}  Qg5 {[%clk 0:00:51]} 26. Qe3 {[%clk 0:01:55]}  Qf6 {[%clk 0:00:47]} 27. a5 {[%clk 0:01:52]}  Qf7 {[%clk 0:00:44]} 28. Ne4 {[%clk 0:01:52]}  Bd5 {[%clk 0:00:36]} 29. Nc5 {[%clk 0:01:52]}  Kh7 {[%clk 0:00:33]} 30. c4 {[%clk 0:01:52]}  Bxc4 {[%clk 0:00:27]} 31. dxc4 {[%clk 0:01:53]}  Qxc4 {[%clk 0:00:27]} 32. Qe4+ {[%clk 0:01:54]} 1-0


[Site "https://www.chess.com"]

[Event "Titled Tuesday Blitz November 08 Late 2022"]
[White "Dudzinski, Pawel"]
[Black "czernikowskqa"]
[WhiteFideId "1117890"]
[WhiteElo "2086"]
[BlackElo "1959"]
[Result "1-0"]
[Round "02"]
[TimeControl "180+1"]
[Date "2022.11.09"]
[WhiteClock "0:01:44"]
[BlackClock "0:00:57"]

1. e4 {[%clk 0:02:55]}  e6 {[%clk 0:03:00]} 2. c4 {[%clk 0:02:51]}  c5 {[%clk 0:02:59]} 3. Nc3 {[%clk 0:02:51]}  Nc6 {[%clk 0:02:59]} 4. g3 {[%clk 0:02:51]}  g6 {[%clk 0:02:59]} 5. Bg2 {[%clk 0:02:52]}  Bg7 {[%clk 0:02:59]} 6. Rb1 {[%clk 0:02:53]}  Nge7 {[%clk 0:02:55]} 7. Nge2 {[%clk 0:02:52]}  O-O {[%clk 0:02:54]} 8. O-O {[%clk 0:02:52]}  d6 {[%clk 0:02:54]} 9. a3 {[%clk 0:02:52]}  a5 {[%clk 0:02:54]} 10. Nb5 {[%clk 0:02:50]}  Na7 {[%clk 0:02:43]} 11. Nxa7 {[%clk 0:02:48]}  Rxa7 {[%clk 0:02:42]} 12. d4 {[%clk 0:02:48]}  cxd4 {[%clk 0:02:42]} 13. Nxd4 {[%clk 0:02:49]}  Bd7 {[%clk 0:02:23]} 14. Be3 {[%clk 0:02:41]}  Ra8 {[%clk 0:02:22]} 15. Qd2 {[%clk 0:02:38]}  Qc7 {[%clk 0:02:14]} 16. Rbc1 {[%clk 0:02:36]}  e5 {[%clk 0:01:57]} 17. Nb5 {[%clk 0:02:30]}  Bxb5 {[%clk 0:01:56]} 18. cxb5 {[%clk 0:02:31]}  Qd7 {[%clk 0:01:53]} 19. b6 {[%clk 0:02:25]}  Rac8 {[%clk 0:01:45]} 20. Qxa5 {[%clk 0:02:21]}  Nc6 {[%clk 0:01:35]} 21. Qd5 {[%clk 0:02:21]}  Kh8 {[%clk 0:01:31]} 22. Rfd1 {[%clk 0:02:11]}  Rfd8 {[%clk 0:01:31]} 23. Bg5 {[%clk 0:02:07]}  f6 {[%clk 0:01:30]} 24. Be3 {[%clk 0:02:07]}  Bf8 {[%clk 0:01:25]} 25. h4 {[%clk 0:02:05]}  h6 {[%clk 0:01:20]} 26. Kh2 {[%clk 0:02:05]}  f5 {[%clk 0:01:20]} 27. Bh3 {[%clk 0:01:52]}  Ne7 {[%clk 0:01:12]} 28. Qf7 {[%clk 0:01:52]}  Rxc1 {[%clk 0:00:57]} 29. Rxc1 {[%clk 0:01:48]}  Bg7 {[%clk 0:00:57]} 30. Rc7 {[%clk 0:01:44]} 1-0


[Site "https://www.chess.com"]

[Event "Titled Tuesday Blitz November 08 Late 2022"]
[White "Fajdetic, Hrvoje"]
[Black "Winterberg, Lukas"]
[WhiteFideId "14501945"]
[BlackFideId "24622702"]
[WhiteElo "2172"]
[BlackElo "2349"]
[Result "0-1"]
[Round "02"]
[TimeControl "180+1"]
[Date "2022.11.09"]
[WhiteClock "0:00:04"]
[BlackClock "0:00:06"]

1. d4 {[%clk 0:03:00]}  Nf6 {[%clk 0:02:51]} 2. Bf4 {[%clk 0:03:00]}  d5 {[%clk 0:02:48]} 3. e3 {[%clk 0:03:01]}  c5 {[%clk 0:02:48]} 4. Nc3 {[%clk 0:03:00]}  cxd4 {[%clk 0:02:41]} 5. exd4 {[%clk 0:03:00]}  a6 {[%clk 0:02:35]} 6. Bd3 {[%clk 0:03:00]}  Nc6 {[%clk 0:02:34]} 7. Nce2 {[%clk 0:03:00]}  Bg4 {[%clk 0:02:31]} 8. f3 {[%clk 0:03:00]}  Bh5 {[%clk 0:02:31]} 9. c3 {[%clk 0:02:59]}  Bg6 {[%clk 0:02:26]} 10. Nh3 {[%clk 0:02:59]}  e6 {[%clk 0:02:26]} 11. O-O {[%clk 0:02:58]}  Be7 {[%clk 0:02:16]} 12. Bxg6 {[%clk 0:02:46]}  hxg6 {[%clk 0:02:16]} 13. Nf2 {[%clk 0:02:43]}  Bd6 {[%clk 0:02:15]} 14. Qd2 {[%clk 0:02:42]}  Nh5 {[%clk 0:02:13]} 15. Bxd6 {[%clk 0:02:38]}  Qxd6 {[%clk 0:02:13]} 16. Ng4 {[%clk 0:02:37]}  f5 {[%clk 0:02:03]} 17. Ne5 {[%clk 0:02:36]}  Nxe5 {[%clk 0:01:59]} 18. dxe5 {[%clk 0:02:37]}  Qxe5 {[%clk 0:01:59]} 19. Rfe1 {[%clk 0:02:30]}  O-O-O {[%clk 0:01:34]} 20. f4 {[%clk 0:02:28]}  Qd6 {[%clk 0:01:30]} 21. g3 {[%clk 0:02:11]}  Nf6 {[%clk 0:01:22]} 22. Nd4 {[%clk 0:02:02]}  Ne4 {[%clk 0:01:07]} 23. Qc2 {[%clk 0:02:02]}  g5 {[%clk 0:01:02]} 24. Rxe4 {[%clk 0:01:47]}  dxe4 {[%clk 0:00:47]} 25. fxg5 {[%clk 0:01:47]}  g6 {[%clk 0:00:42]} 26. Qb3 {[%clk 0:01:33]}  e5 {[%clk 0:00:31]} 27. Qe6+ {[%clk 0:01:02]}  Qxe6 {[%clk 0:00:31]} 28. Nxe6 {[%clk 0:01:02]}  Rd2 {[%clk 0:00:31]} 29. h4 {[%clk 0:00:59]}  Re8 {[%clk 0:00:27]} 30. Nc5 {[%clk 0:00:56]}  Red8 {[%clk 0:00:20]} 31. b3 {[%clk 0:00:48]}  Rc2 {[%clk 0:00:18]} 32. g4 {[%clk 0:00:31]}  fxg4 {[%clk 0:00:15]} 33. Nxe4 {[%clk 0:00:30]}  Rdd2 {[%clk 0:00:15]} 34. h5 {[%clk 0:00:28]}  Rg2+ {[%clk 0:00:14]} 35. Kf1 {[%clk 0:00:29]}  Rh2 {[%clk 0:00:14]} 36. Kg1 {[%clk 0:00:20]}  Rxh5 {[%clk 0:00:11]} 37. Rf1 {[%clk 0:00:20]}  Rhh2 {[%clk 0:00:09]} 38. Rf7 {[%clk 0:00:17]}  Rcg2+ {[%clk 0:00:08]} 39. Kf1 {[%clk 0:00:17]}  Rxa2 {[%clk 0:00:09]} 40. Kg1 {[%clk 0:00:17]}  Rag2+ {[%clk 0:00:08]} 41. Kf1 {[%clk 0:00:17]}  Rb2 {[%clk 0:00:08]} 42. Kg1 {[%clk 0:00:15]}  Rhe2 {[%clk 0:00:06]} 43. Nd6+ {[%clk 0:00:15]}  Kb8 {[%clk 0:00:07]} 44. Kf1 {[%clk 0:00:13]}  Red2 {[%clk 0:00:06]} 45. Rf8+ {[%clk 0:00:10]}  Ka7 {[%clk 0:00:06]} 46. Nc8+ {[%clk 0:00:10]}  Kb8 {[%clk 0:00:06]} 47. Ke1 {[%clk 0:00:10]}  Re2+ {[%clk 0:00:05]} 48. Kd1 {[%clk 0:00:10]}  Kc7 {[%clk 0:00:06]} 49. Ne7 {[%clk 0:00:09]}  Rh2 {[%clk 0:00:06]} 50. Kc1 {[%clk 0:00:08]}  Ra2 {[%clk 0:00:05]} 51. Kb1 {[%clk 0:00:08]}  Raf2 {[%clk 0:00:06]} 52. Nd5+ {[%clk 0:00:07]}  Kd6 {[%clk 0:00:06]} 53. Rxf2 {[%clk 0:00:08]}  Rxf2 {[%clk 0:00:05]} 54. Nf6 {[%clk 0:00:07]}  g3 {[%clk 0:00:05]} 55. Ne4+ {[%clk 0:00:06]}  Ke6 {[%clk 0:00:05]} 56. Nxg3 {[%clk 0:00:06]}  Rg2 {[%clk 0:00:05]} 57. Ne4 {[%clk 0:00:07]}  Kf5 {[%clk 0:00:05]} 58. Nd6+ {[%clk 0:00:06]}  Kxg5 {[%clk 0:00:05]} 59. Nxb7 {[%clk 0:00:07]}  Kf4 {[%clk 0:00:05]} 60. Nc5 {[%clk 0:00:07]}  Re2 {[%clk 0:00:04]} 61. Kc1 {[%clk 0:00:06]}  g5 {[%clk 0:00:04]} 62. Kd1 {[%clk 0:00:07]}  Rh2 {[%clk 0:00:05]} 63. Ke1 {[%clk 0:00:07]}  g4 {[%clk 0:00:05]} 64. Kf1 {[%clk 0:00:07]}  Ra2 {[%clk 0:00:04]} 65. c4 {[%clk 0:00:05]}  g3 {[%clk 0:00:04]} 66. Nd3+ {[%clk 0:00:04]}  Ke3 {[%clk 0:00:04]} 67. Nxe5 {[%clk 0:00:04]}  g2+ {[%clk 0:00:04]} 68. Kg1 {[%clk 0:00:04]}  Rb2 {[%clk 0:00:03]} 69. c5 {[%clk 0:00:01]}  Rxb3 {[%clk 0:00:03]} 70. Kxg2 {[%clk 0:00:02]}  Rc3 {[%clk 0:00:04]} 71. c6 {[%clk 0:00:02]}  a5 {[%clk 0:00:04]} 72. Kf1 {[%clk 0:00:02]}  a4 {[%clk 0:00:04]} 73. Ng4+ {[%clk 0:00:02]}  Kd4 {[%clk 0:00:04]} 74. Ke1 {[%clk 0:00:02]}  a3 {[%clk 0:00:04]} 75. Kd2 {[%clk 0:00:02]}  a2 {[%clk 0:00:05]} 76. Ne3 {[%clk 0:00:03]}  Rxe3 {[%clk 0:00:04]} 77. c7 {[%clk 0:00:03]}  Re8 {[%clk 0:00:05]} 78. c8=Q {[%clk 0:00:03]}  Rxc8 {[%clk 0:00:06]} 79. Ke2 {[%clk 0:00:03]}  a1=Q {[%clk 0:00:06]} 80. Kf2 {[%clk 0:00:04]}  Qb2+ {[%clk 0:00:06]} 0-1


[Site "https://www.chess.com"]